bitfinex/quotes_ETHUSD_20251215
["timestamp","ask_amount","ask_price","bid_price","bid_amount"]
[1765812660624,1.2514,3009.6,3007.6,0.98597929]
[1765812661001,3.35823594,3010.6,3008.6,0.58047529]
[1765812661272,3.35823594,3010.6,3007.0,9.97672098]
[1765812661273,19.41599654,3009.8,3007.0,9.97672098]
[1765812661569,0.1985,3009.9,3007.1,0.86247529]
[1765812661570,0.001,3007.4,3007.1,0.86247529]
[1765812661718,0.001,3007.4,3007.1,0.28]
[1765812661919,0.001,3007.4,3007.2,0.002]
[1765812662158,0.001,3007.4,3006.0,0.002]
[1765812662553,0.001,3007.4,3006.1,0.28]
[1765812662933,0.001,3007.4,3006.2,0.61616075]
[1765812663457,0.001,3007.4,3006.1,0.28]
[1765812663668,0.001,3007.4,3005.6,9.9833681]
[1765812663836,0.001,3007.4,3005.7,0.61247529]
[1765812664020,0.001,3007.4,3005.8,0.002]
[1765812664223,0.001,3007.4,3005.9,0.58047529]
[1765812664468,0.001,3007.4,3006.4,5.85960754]
[1765812664784,0.187,3008.5,3006.5,0.002]
[1765812664917,0.187,3008.5,3006.5,0.032]
[1765812665118,0.03660688,3008.3,3006.5,0.032]
[1765812665360,8.433683,3008.2,3006.5,0.03]
[1765812665657,0.187,3006.6,3004.8,3.32799762]
[1765812665948,0.561,3006.5,3005.3,3.32737351]
[1765812666159,0.48,3006.5,3004.7,0.001]
[1765812666364,0.48,3007.2,3005.4,0.58047529]
[1765812666662,0.561,3007.1,3005.6,0.405504]
[1765812666832,0.51660688,3008.1,3005.7,0.03327012]
[1765812667155,0.561,3008.0,3005.8,12.403762]
[1765812667368,0.03660688,3008.4,3006.1,0.58047529]
[1765812667578,3.36068834,3008.4,3006.5,0.98597929]
[1765812667730,0.03660688,3009.4,3007.1,11.792609]
[1765812667930,0.561,3008.7,3007.2,1.23830843]
[1765812668242,0.001,3008.5,3008.0,9.97340424]
[1765812668431,0.001,3008.5,3008.1,0.98697929]
[1765812668659,0.561,3009.6,3008.1,0.98697929]
[1765812668866,0.001,3009.8,3008.2,1.09603835]
[1765812669061,0.001,3009.8,3008.0,13.29787232]
[1765812669062,0.51660688,3009.7,3008.0,6.64893616]
[1765812669297,0.48,3009.3,3007.9,3.32453158]
[1765812669495,0.03660688,3009.5,3007.9,6.64911018]
[1765812669814,0.561,3009.2,3007.2,0.58047529]
[1765812669968,0.561,3009.2,3006.6,5.85960754]
[1765812669969,4.223099,3009.0,3007.4,0.27]
[1765812670160,0.03660688,3009.1,3006.1,5.85960754]
[1765812670161,0.51660688,3009.1,3006.1,5.85960754]
[1765812670360,0.51660688,3009.1,3006.2,6.6529173]
[1765812670361,30.0,3008.7,3006.2,6.6529173]
[1765812670660,0.405504,3008.3,3006.2,6.6529173]
[1765812671000,0.98597929,3007.9,3006.3,0.27]
[1765812671168,4.587355,3007.6,3006.3,0.27]
[1765812671489,0.405504,3007.3,3006.3,0.27]
[1765812671689,0.405504,3007.3,3006.1,3.32653878]
[1765812671690,0.48,3007.3,3006.1,3.32653878]
[1765812671893,0.48,3007.3,3006.1,6.65310808]
[1765812672094,0.56,3007.5,3006.1,10.31233126]
[1765812672262,0.56,3007.5,3006.1,3.65919266]
[1765812672462,0.56,3007.5,3006.2,0.61373987]
[1765812672685,5.85960754,3008.9,3006.7,0.58047529]
[1765812672686,0.56,3008.1,3006.7,0.58047529]
[1765812672889,0.56,3008.1,3007.0,8.634094]
[1765812673194,0.56,3008.8,3006.7,1.14047529]
[1765812673492,0.58047529,3008.6,3006.2,0.58047529]
[1765812673797,3.317341,3007.8,3005.8,3.32680539]
[1765812674001,1.04,3007.7,3006.1,3.32651077]
[1765812674162,0.51660688,3007.6,3006.1,6.65308007]
[1765812674364,3.32502078,3007.5,3005.4,6.65468822]
[1765812674588,21.381061,3007.4,3005.5,0.66546882]
[1765812674773,0.48,3007.4,3005.6,3.697741]
[1765812674976,10.63868054,3007.2,3004.2,3.32860085]
[1765812675175,0.405504,3007.0,3005.2,0.27]
[1765812675375,0.56,3006.9,3006.0,0.002]
[1765812675663,0.48,3007.0,3006.0,0.002]
[1765812675863,0.56,3006.9,3006.0,0.002]
[1765812676392,0.56,3007.5,3006.2,0.405504]
[1765812676594,0.56,3007.6,3006.6,0.405504]
[1765812676771,0.188,3008.5,3007.2,0.405504]
[1765812676772,0.001,3008.5,3007.2,0.405504]
[1765812676974,0.001,3008.5,3007.5,0.58047529]
[1765812677178,0.001,3008.5,3008.1,21.630795]
[1765812677485,0.001,3008.5,3008.4,6.84558683]
[1765812677688,0.001,3008.5,3008.4,0.58047529]
[1765812677992,0.001,3008.5,3008.4,0.98597929]
[1765812678396,0.03660688,3009.7,3008.5,17.93578929]
[1765812678617,0.03660688,3009.7,3008.9,6.393934]
[1765812678896,0.001,3009.8,3009.4,1.02258617]
[1765812679101,0.001,3009.8,3009.6,0.405504]
[1765812679311,0.001,3011.0,3009.9,30.0]
[1765812679597,0.001,3011.0,3010.9,6.84558683]
[1765812679787,0.001,3011.0,3010.9,0.98597929]
[1765812679995,0.001,3011.0,3010.5,0.405504]
[1765812680378,0.001,3011.0,3010.7,0.58047529]
[1765812680578,0.001,3011.0,3010.8,0.405504]
[1765812680778,0.001,3011.0,3010.9,0.98597929]
[1765812681089,0.001,3011.0,3010.6,0.58047529]
[1765812681490,0.001,3011.0,3010.7,1.12789173]
[1765812681675,0.001,3011.0,3010.7,0.72238773]
[1765812682009,0.001,3011.0,3010.9,0.98597929]
[1765812682213,0.48,3013.3,3011.0,0.405504]
[1765812682378,4.35867448,3013.3,3011.2,0.58047529]
[1765812682579,4.35867448,3013.3,3011.0,3.90161351]
[1765812682580,0.58047529,3013.0,3011.0,3.90161351]
[1765812682892,0.58047529,3012.5,3010.3,0.03660688]
[1765812683090,0.48,3013.2,3010.3,0.03660688]
[1765812683091,0.58047529,3013.0,3011.0,6.64229219]
[1765812683292,28.837285,3013.0,3011.1,0.58047529]
[1765812683495,0.56,3013.0,3011.2,0.43871335]
[1765812683811,0.48,3014.9,3012.8,0.405504]
[1765812684034,0.48,3015.6,3013.9,0.405504]
[1765812684178,0.747,3016.0,3014.4,0.98597929]
[1765812684179,0.56,3016.0,3014.4,0.98597929]
[1765812684378,0.56,3016.0,3014.6,0.405504]
[1765812684601,0.187,3016.6,3014.9,0.58047529]
[1765812684786,0.187,3016.6,3014.9,0.98597929]
[1765812685004,0.48,3016.3,3014.4,3.31737835]
[1765812685314,0.11509583,3015.0,3014.5,0.58047529]
[1765812685516,0.11509583,3015.0,3013.6,5.85960754]
[1765812685832,3.91188065,3015.0,3013.4,3.31841263]
[1765812685977,3.91188065,3015.0,3012.8,5.85960754]
[1765812685978,3.43185525,3015.0,3013.6,3.31819158]
[1765812686177,3.43185525,3015.0,3014.4,3.31735876]
[1765812686178,0.11509583,3015.0,3014.4,3.31735876]
[1765812686481,0.11509583,3015.0,3013.2,0.405504]
[1765812686696,0.11509583,3015.0,3013.0,6.63790242]
[1765812686697,23.136832,3014.8,3013.0,6.63790242]
[1765812687015,0.11509583,3015.0,3013.1,5.86960754]
[1765812687320,0.98597929,3014.6,3012.0,5.85960754]
[1765812687488,0.559,3014.5,3012.9,3.3190407]
[1765812687692,0.559,3014.5,3011.4,7.54024144]
[1765812687693,0.405504,3014.2,3011.4,7.54024144]
[1765812688022,0.405504,3014.0,3011.5,1.64510474]
[1765812688221,0.48,3014.3,3012.6,0.58047529]
[1765812688421,1.13947529,3014.6,3012.4,6.63922452]
[1765812688721,0.58047529,3013.9,3012.3,6.63942419]
[1765812688888,0.187,3014.0,3012.4,0.58047529]
[1765812689083,4.78547529,3013.8,3012.4,0.58047529]
[1765812689297,0.48,3013.9,3012.4,0.58047529]
[1765812689498,0.559,3014.6,3012.5,0.559]
[1765812689788,0.559,3014.6,3012.7,0.405504]
[1765812689978,0.559,3014.6,3012.9,0.405504]
[1765812690179,0.559,3014.6,3013.0,0.03318951]
[1765812690403,0.559,3014.6,3012.3,16.94038472]
[1765812690404,3.31729971,3014.5,3012.3,16.94038472]
[1765812690609,3.31729971,3014.5,3012.4,0.99597929]
[1765812690813,0.559,3014.4,3012.4,0.99597929]
[1765812691193,1.233,3014.3,3012.3,6.63942081]
[1765812691405,1.233,3014.3,3012.4,0.58047529]
[1765812691406,0.4823,3014.2,3012.4,0.58047529]
[1765812691916,3.667826,3014.1,3012.4,0.58047529]
[1765812692117,17.266932,3013.8,3011.4,3.3206498]
[1765812692320,0.404704,3014.0,3011.6,0.29]
[1765812692502,0.58047529,3013.8,3011.6,3.61046245]
[1765812692709,16.136668,3013.5,3011.6,0.29]
[1765812693012,0.58047529,3012.9,3011.3,3.32080286]
[1765812693316,0.58047529,3012.4,3010.8,0.03660688]
[1765812693496,0.58047529,3012.0,3010.8,0.03660688]
[1765812693692,0.6549,3012.3,3010.8,0.03660688]
[1765812694014,0.1801,3012.3,3010.6,3.32151988]
[1765812694213,3.22464,3012.2,3008.1,3.32434867]
[1765812694414,0.405504,3011.8,3009.4,3.32287442]
[1765812694714,0.559,3012.2,3010.7,0.58047529]
[1765812695116,0.4748,3012.5,3010.8,0.405504]
[1765812695319,1.0348,3012.4,3009.5,0.70202588]
[1765812695519,1.0348,3012.4,3009.7,2.469]
[1765812695520,0.405504,3012.1,3009.7,2.469]
[1765812695737,0.405504,3011.8,3009.9,0.29]
[1765812695909,0.98597929,3011.4,3009.9,0.29]
[1765812696108,0.56,3011.3,3009.9,0.29]
[1765812696304,0.4748,3011.3,3009.9,0.29]
[1765812696502,0.58047529,3011.2,3009.0,4.54864625]
[1765812696705,0.03660688,3012.1,3009.0,4.54864625]
[1765812696706,0.6549,3013.5,3011.1,9.47534744]
[1765812696904,0.1917,3014.3,3012.1,0.405504]
[1765812697219,0.1917,3014.3,3011.3,0.98597929]
[1765812697220,0.4748,3014.2,3012.3,0.405504]
[1765812697427,0.4748,3014.2,3011.7,0.03320383]
[1765812697428,3.880291,3014.1,3011.7,0.03320383]
[1765812697601,3.880291,3014.1,3010.7,0.561]
[1765812697602,6.92254,3014.0,3011.5,0.02]
[1765812697924,4.052794,3013.9,3011.5,0.02]
[1765812698124,0.561,3013.8,3011.5,1.00597929]
[1765812698288,0.405504,3013.7,3011.6,0.79872207]
[1765812698494,0.405504,3013.5,3011.7,0.58047529]
[1765812698717,0.405504,3013.5,3010.9,3.32119579]
[1765812698718,0.98597929,3013.1,3011.4,3.32069678]
[1765812698889,0.98597929,3013.1,3008.7,0.05]
[1765812698890,0.405504,3012.7,3009.6,7.01784832]
[1765812699096,0.561,3012.6,3010.7,3.32141868]
[1765812699316,5.824731,3012.4,3010.8,3.3213391]
[1765812699635,0.001,3012.2,3010.6,0.002]
[1765812700233,0.4748,3012.1,3010.9,3.32119651]
[1765812700532,3.88114078,3012.0,3010.6,0.002]
[1765812700742,0.58047529,3011.9,3010.6,0.002]
[1765812701027,7.11508156,3012.0,3010.6,0.002]
[1765812701213,0.561,3011.9,3010.6,0.002]
[1765812701418,0.001,3012.2,3010.6,0.002]
[1765812701725,0.561,3011.8,3010.6,0.002]
[1765812701928,1.05527529,3012.1,3010.6,0.002]
[1765812702115,0.4748,3012.1,3010.6,0.002]
[1765812702320,0.001,3012.2,3010.6,0.002]
[1765812702321,0.561,3012.0,3010.6,0.002]
[1765812702511,3.32005312,3012.0,3010.6,0.002]
[1765812702698,0.001,3012.2,3010.6,0.002]
[1765812703101,0.001,3012.2,3011.1,0.405504]
[1765812703326,0.561,3012.1,3010.8,2.82127]
[1765812703527,0.001,3012.2,3011.2,0.405504]
[1765812703750,0.001,3012.2,3011.4,0.405504]
[1765812704222,0.001,3012.2,3012.0,0.405504]
[1765812704426,0.001,3012.2,3012.1,4.30592218]
[1765812704733,0.1801,3014.3,3012.1,4.30592218]
[1765812704734,0.561,3013.4,3012.2,0.98597929]
[1765812704940,3.31707964,3014.7,3012.5,0.58047529]
[1765812705123,0.4748,3014.8,3012.6,8.6764172]
[1765812705457,0.561,3014.7,3012.8,0.405504]
[1765812705636,0.561,3014.7,3012.6,0.58047529]
[1765812705637,0.561,3014.6,3012.7,0.405504]
[1765812705806,0.4758,3014.9,3012.7,0.405504]
[1765812706162,0.001,3014.9,3013.2,0.405504]
[1765812706327,0.561,3014.8,3013.3,0.73867454]
[1765812706521,0.561,3014.8,3013.5,0.58047529]
[1765812706723,0.001,3014.9,3013.5,0.58047529]
[1765812706923,0.561,3014.8,3013.5,0.58047529]
[1765812707136,1.0358,3014.8,3013.5,0.58047529]
[1765812707437,0.561,3014.7,3013.5,0.58047529]
[1765812707850,0.98597929,3014.5,3012.8,0.28]
[1765812708053,7.948032,3014.2,3012.8,0.28]
[1765812708206,1.54597929,3014.1,3012.3,3.31970426]
[1765812708404,0.405504,3013.6,3012.0,0.28]
[1765812708645,9.9545409,3013.7,3012.0,3.32001512]
[1765812708838,0.4748,3013.8,3012.0,13.61217599]
[1765812709006,10.936003,3013.4,3012.0,3.32001512]
[1765812709207,0.58047529,3013.4,3012.0,3.32001512]
[1765812709406,0.405504,3013.2,3011.9,3.3200559]
[1765812709615,0.405504,3013.2,3011.5,3.32055014]
[1765812709616,0.98597929,3013.0,3011.2,0.03]
[1765812709821,14.157695,3013.1,3011.2,0.03]
[1765812709822,0.4748,3013.1,3011.2,0.03]
[1765812710035,1.0358,3013.0,3011.4,3.32061496]
[1765812710236,1.0358,3013.0,3011.4,0.3350615]
[1765812710456,1.0358,3013.0,3010.9,0.58247529]
[1765812710457,0.58047529,3012.8,3010.9,0.002]
[1765812710648,0.58047529,3012.8,3011.0,0.03]
[1765812710963,0.1801,3013.3,3011.1,0.61708217]
[1765812710964,3.49881205,3013.3,3011.1,0.61708217]
[1765812711249,19.356826,3014.1,3011.2,0.76283236]
[1765812711420,19.356826,3014.1,3011.0,0.03]
[1765812711421,0.1801,3014.2,3011.9,16.25048929]
[1765812711621,0.1801,3014.2,3012.1,0.98597929]
[1765812711816,0.561,3014.1,3012.1,0.405504]
[1765812712039,0.561,3014.0,3012.2,19.930039]
[1765812712243,0.6549,3014.2,3012.1,0.405504]
[1765812712440,0.6549,3014.2,3012.6,13.27756752]
[1765812712642,0.03660688,3014.3,3012.8,0.405504]
[1765812713251,0.561,3014.2,3012.8,0.405504]
[1765812713454,0.03660688,3014.3,3012.8,0.435504]
[1765812713621,0.561,3014.2,3013.1,0.405504]
[1765812713824,0.561,3014.2,3012.8,0.435504]
[1765812714052,0.561,3014.2,3012.8,0.03]
[1765812714239,0.561,3014.2,3012.6,6.63878376]
[1765812714240,1.61627529,3014.2,3012.6,6.63878376]
[1765812714445,6.63570006,3014.0,3012.0,9.96015936]
[1765812714653,0.98597929,3013.7,3012.1,0.03]
[1765812714825,9.95355009,3014.0,3012.1,0.03]
[1765812714826,0.98597929,3013.5,3012.1,0.03]
[1765812715023,20.686473,3013.2,3010.9,0.002]
[1765812715237,1.440304,3013.1,3010.9,0.70032414]
[1765812715538,0.58047529,3012.9,3011.0,3.35110319]
[1765812715724,0.03660688,3013.5,3011.0,3.35110319]
[1765812715725,0.56,3012.8,3012.0,0.58047529]
[1765812715924,0.51060688,3013.5,3012.0,0.58047529]
[1765812716150,0.56,3013.4,3012.1,0.72207711]
[1765812716337,0.405504,3012.9,3011.7,3.32028188]
[1765812716657,1.0348,3012.8,3011.2,0.58047529]
[1765812716823,0.58047529,3013.3,3011.3,1.38645893]
[1765812717022,1.0348,3013.2,3011.3,1.38645893]
[1765812717227,0.56,3013.1,3011.4,0.405504]
[1765812717628,0.56,3013.1,3011.3,1.38645893]
[1765812717975,0.58047529,3013.3,3011.4,0.27]
[1765812718129,8.438396,3012.9,3011.4,0.49369342]
[1765812718327,0.405504,3012.9,3011.1,9.96306851]
[1765812718532,0.56,3012.8,3010.9,0.002]
[1765812718886,0.56,3012.8,3011.4,0.002]
[1765812719040,1.05527529,3012.9,3011.4,0.002]
[1765812719244,0.56,3012.7,3011.4,0.002]
[1765812719442,0.4748,3012.6,3011.4,0.002]
[1765812720058,0.56,3012.5,3011.4,0.002]
[1765812720269,0.405504,3012.4,3011.4,0.002]
[1765812720594,0.7401,3012.5,3011.4,0.002]
[1765812720595,0.1801,3012.5,3011.4,0.002]
[1765812720896,0.1801,3011.1,3010.9,0.002]
[1765812721245,0.98597929,3010.6,3009.6,0.002]
[1765812721413,1.0348,3011.0,3007.1,0.2433]
[1765812721414,0.58047529,3009.5,3007.1,0.2433]
[1765812721714,0.56,3009.4,3008.1,9.97307268]
[1765812722204,0.4748,3010.9,3008.2,0.369]
[1765812722205,0.1814,3010.0,3008.2,0.369]
[1765812722352,0.405504,3009.8,3008.2,0.1257]
[1765812722563,0.405504,3009.4,3006.9,3.32558054]
[1765812722824,0.58047529,3008.8,3007.6,3.32489578]
[1765812722978,0.98597929,3008.4,3006.5,0.002]
[1765812723177,0.405504,3008.4,3006.9,3.32568296]
[1765812723501,0.405504,3008.4,3006.5,0.002]
[1765812723502,0.405504,3008.2,3006.5,0.002]
[1765812723801,0.405504,3007.7,3006.5,3.32812278]
[1765812724006,0.98597929,3007.9,3006.5,3.32812278]
[1765812724211,0.4576,3007.8,3006.5,10.3131885]
[1765812724413,0.03660688,3009.3,3006.6,0.82377529]
[1765812724414,0.4576,3009.0,3006.6,0.82377529]
[1765812724581,0.58047529,3008.9,3006.8,0.58047529]
[1765812724764,2.345484,3008.7,3006.8,0.58047529]
[1765812724979,0.405504,3008.6,3006.8,1.32803391]
[1765812725336,0.405504,3008.6,3006.7,6.65181094]
[1765812725337,0.405504,3008.4,3006.7,6.65181094]
[1765812725683,0.4576,3008.3,3006.7,6.65181094]
[1765812725928,0.03660688,3008.5,3006.8,0.82377529]
[1765812726130,0.56,3008.4,3006.8,0.82377529]
[1765812726330,0.4576,3008.7,3006.8,0.58047529]
[1765812726514,0.56,3008.3,3007.1,0.58047529]
[1765812726824,0.4576,3008.7,3007.1,0.58047529]
[1765812727737,0.56,3008.6,3007.2,0.2433]
[1765812728021,0.405504,3008.1,3006.8,0.002]
[1765812728336,0.405504,3007.9,3006.9,3.32567048]
[1765812728632,0.56,3007.8,3006.8,0.002]
[1765812728782,0.56,3007.7,3006.8,0.002]
[1765812728983,1.0176,3007.7,3006.8,0.002]
[1765812729182,0.58047529,3007.9,3006.8,0.002]
[1765812729399,0.03660688,3008.6,3006.9,0.2433]
[1765812729628,0.4576,3008.5,3006.9,0.2433]
[1765812729830,7.05092795,3009.7,3006.9,0.2433]
[1765812729831,0.4576,3009.1,3007.0,0.405504]
[1765812730126,3.35943641,3009.5,3007.2,0.405504]
[1765812730335,0.4576,3009.4,3007.2,0.405504]
[1765812730486,0.4576,3009.4,3006.9,11.46401]
[1765812730829,0.58047529,3009.2,3007.1,0.405504]
[1765812731183,7.14035682,3009.3,3007.2,0.2433]
[1765812731389,7.14035682,3009.3,3007.3,0.405504]
[1765812731588,0.4576,3009.2,3007.3,0.405504]
[1765812731800,0.56,3009.1,3007.4,0.2433]
[1765812732121,1.03807529,3009.2,3007.0,0.43875973]
[1765812732283,1.0176,3009.1,3006.8,0.002]
[1765812732494,1.0176,3009.1,3007.1,0.58047529]
[1765812732495,0.98597929,3008.9,3007.1,0.58047529]
[1765812732684,0.98597929,3008.5,3006.8,0.002]
[1765812733012,0.405504,3008.3,3006.9,3.32567259]
[1765812733195,0.98597929,3007.9,3006.8,0.002]
[1765812733394,0.405504,3007.7,3006.8,0.002]
[1765812733623,1.0176,3007.6,3006.8,0.002]
[1765812733807,0.405504,3007.5,3006.8,0.002]
[1765812734011,0.4576,3007.5,3006.8,0.002]
[1765812734183,0.1814,3007.4,3006.8,0.002]
[1765812734387,0.56,3007.3,3006.9,3.32560779]
[1765812734584,0.56,3007.2,3006.8,0.002]
[1765812734836,0.4576,3008.8,3006.9,8.236082]
[1765812735124,0.56,3008.7,3007.0,0.405504]
[1765812735334,0.56,3008.6,3006.8,0.82577529]
[1765812735483,0.56,3008.6,3006.9,0.405504]
[1765812735689,3.50467836,3009.1,3007.1,0.98597929]
[1765812735928,0.03660688,3009.3,3007.5,0.405504]
[1765812736085,0.03660688,3009.3,3008.1,0.98597929]
[1765812736418,0.03660688,3009.3,3007.6,0.369]
[1765812736419,0.59660688,3009.3,3007.6,0.369]
[1765812736630,0.03660688,3009.3,3007.9,0.405504]
[1765812736938,0.59660688,3009.3,3008.3,0.405504]
[1765812737084,0.03660688,3009.3,3008.8,0.405504]
[1765812737292,3.32094205,3011.2,3009.1,0.98597929]
[1765812737604,0.001,3010.7,3009.5,0.98597929]
[1765812737921,0.001,3010.7,3010.1,0.98597929]
[1765812738085,0.001,3010.7,3010.6,0.0801]
[1765812738286,0.001,3011.9,3010.8,0.58047529]
[1765812738487,0.001,3011.9,3011.2,0.405504]
[1765812738685,0.001,3011.9,3011.3,0.58047529]
[1765812738942,0.5592,3012.9,3011.8,0.405504]
[1765812739287,0.5592,3012.9,3011.8,0.2037]
[1765812739529,0.5592,3012.9,3011.4,0.405504]
[1765812739813,0.5592,3012.9,3010.6,0.6401]
[1765812739814,0.4576,3012.8,3010.9,6.64252862]
[1765812740046,0.56,3012.7,3011.1,0.405504]
[1765812740196,0.4576,3012.8,3011.1,0.405504]
[1765812740392,0.56,3012.7,3011.0,1.24472815]
[1765812740625,6.63878376,3012.6,3011.2,0.58047529]
[1765812740833,0.001,3013.1,3011.3,0.405504]
[1765812741046,0.56,3012.6,3011.5,0.405504]
[1765812741529,0.56,3012.6,3011.2,0.78868191]
[1765812741731,0.56,3012.6,3010.8,0.58047529]
[1765812741732,0.03660688,3012.4,3010.8,0.58047529]
[1765812741896,0.03660688,3012.4,3011.0,6.64225324]
[1765812742232,0.03660688,3012.8,3011.1,0.98597929]
[1765812742524,3.77755121,3013.0,3011.1,0.98597929]
[1765812742525,3.31950207,3012.5,3011.3,0.58047529]
[1765812742724,3.31950207,3012.5,3011.3,1.27752138]
[1765812742935,0.56,3012.4,3011.3,1.27752138]
[1765812743139,0.001,3013.0,3011.4,0.609204]
[1765812743297,0.56,3012.4,3011.6,0.98597929]
[1765812743497,0.56,3012.4,3011.3,1.27752138]
[1765812743698,0.56,3012.4,3011.3,0.58047529]
[1765812743915,1.0176,3012.4,3011.0,3.32106647]
[1765812744129,4.835055,3012.3,3010.9,3.32124394]
[1765812744307,4.835055,3012.3,3010.6,0.0801]
[1765812744308,6.238499,3012.0,3010.6,0.0801]
[1765812744511,0.4576,3012.2,3010.6,0.0801]
[1765812744705,0.001,3013.0,3010.9,21.131726]
[1765812744911,0.001,3013.0,3011.3,0.58047529]
[1765812744912,0.001,3012.4,3011.3,0.58047529]
[1765812745232,0.561,3012.3,3011.0,0.2037]
[1765812745436,0.001,3012.4,3011.1,0.405504]
[1765812745733,0.561,3012.3,3010.9,0.2037]
[1765812746106,0.561,3012.3,3010.8,0.58047529]
[1765812746295,0.561,3012.3,3010.9,0.04]
[1765812746500,0.001,3012.4,3010.9,0.04]
[1765812746501,0.001,3012.4,3010.9,0.2437]
[1765812746702,0.561,3012.2,3011.1,0.58047529]
[1765812746935,0.561,3012.2,3011.2,0.03320935]
[1765812747134,0.001,3013.0,3011.4,0.405504]
[1765812747306,0.001,3013.0,3012.1,0.98597929]
[1765812747519,0.001,3013.0,3012.1,0.445504]
[1765812748041,0.001,3013.0,3011.4,0.2037]
[1765812748338,1.03807529,3012.9,3011.0,6.64231152]
[1765812748544,1.03807529,3012.9,3011.0,3.32115576]
[1765812748545,0.58047529,3012.6,3011.0,3.32115576]
[1765812748846,0.58047529,3012.6,3010.9,9.96379818]
[1765812748847,0.58047529,3012.4,3010.9,9.96379818]
[1765812749049,0.562,3012.3,3011.0,0.58047529]
[1765812749218,0.561,3012.2,3011.0,0.58047529]
[1765812750040,0.49420688,3012.1,3010.9,3.32126606]
[1765812750340,0.561,3012.0,3010.9,6.64253212]
[1765812750540,3.3193195,3012.7,3011.0,0.58047529]
[1765812750853,0.001,3013.1,3011.5,0.98597929]
[1765812751008,0.561,3012.9,3011.6,0.2037]
[1765812751213,0.001,3013.1,3011.7,0.405504]
[1765812751413,0.561,3012.9,3011.7,0.405504]
[1765812751712,0.561,3012.8,3011.9,0.405504]
[1765812752308,0.561,3012.8,3011.2,0.78417529]
[1765812752513,6.63892252,3013.0,3011.3,1.77894026]
[1765812752749,0.03660688,3012.8,3011.4,6.64142922]
[1765812752911,0.03660688,3012.8,3011.5,0.58047529]
[1765812753107,18.367609,3012.7,3011.3,3.36080036]
[1765812753345,18.367609,3012.7,3011.3,3.32080036]
[1765812753346,0.4861,3012.7,3011.3,3.32080036]
[1765812753640,0.561,3012.6,3011.4,0.58047529]
[1765812753842,0.52270688,3012.8,3011.4,0.58047529]
[1765812754006,0.561,3012.5,3010.9,3.32124664]
[1765812754210,0.03660688,3012.4,3010.6,0.0801]
[1765812754434,0.52270688,3012.4,3011.0,3.32113443]
[1765812754713,0.03660688,3012.6,3011.0,0.33211344]
[1765812754913,0.561,3012.5,3010.9,0.405504]
[1765812755142,0.001,3013.1,3011.3,5.81825826]
[1765812755447,0.562,3013.1,3011.5,0.62047529]
[1765812755607,0.562,3013.1,3011.6,0.405504]
[1765812755808,0.561,3012.9,3011.8,0.98597929]
[1765812756024,0.561,3012.9,3011.8,0.405504]
[1765812756314,0.561,3012.9,3012.0,0.405504]
[1765812756542,0.001,3013.1,3012.0,0.405504]
[1765812756846,0.56,3012.9,3012.2,0.98597929]
[1765812757049,0.56,3012.9,3012.2,0.58047529]
[1765812757214,0.001,3013.1,3012.2,0.58047529]
[1765812757409,0.001,3013.1,3012.1,6.63988578]
[1765812757750,0.001,3013.1,3012.3,0.405504]
[1765812758056,0.001,3013.7,3012.4,27.96707112]
[1765812758361,0.001,3013.7,3013.6,0.527204]
[1765812758641,0.001,3013.7,3013.6,0.1217]
[1765812758839,0.001,3013.7,3013.6,3.43999041]
[1765812759241,0.001,3013.7,3013.6,3.31829041]
[1765812759608,0.001,3013.7,3013.6,3.92549441]
[1765812759832,0.001,3013.7,3013.6,3.31829041]
[1765812760028,0.001,3013.7,3013.6,3.72379441]
[1765812760237,0.001,3013.7,3013.6,3.31829041]
[1765812760814,0.001,3013.7,3013.4,0.58047529]
[1765812761142,0.001,3013.7,3013.4,1.05363376]
[1765812761342,0.001,3013.7,3013.5,0.2017]
[1765812761542,0.001,3013.7,3013.4,1.05363376]
[1765812761744,0.001,3013.7,3013.5,0.607204]
[1765812762043,0.001,3013.7,3013.5,0.2017]
[1765812762347,0.0002,3013.7,3013.5,0.18358091]
[1765812762512,0.0002,3013.7,3013.6,0.2017]
[1765812763054,0.0002,3013.7,3013.6,4.5059697]
[1765812763218,0.0002,3013.7,3013.6,4.1004657]
[1765812763416,0.0002,3013.7,3013.6,3.31829041]
[1765812763818,0.0002,3013.7,3012.7,3.31921593]
[1765812764132,0.5612,3013.7,3012.7,0.2017]
[1765812764339,0.5612,3013.7,3012.5,0.1217]
[1765812764555,0.0002,3013.7,3013.6,3.31829041]
[1765812765047,0.0002,3013.7,3013.6,3.8987657]
[1765812765445,0.0002,3013.7,3013.6,4.5059697]
[1765812766613,0.0002,3013.7,3013.6,3.8987657]
[1765812766818,0.0002,3013.7,3013.4,3.31850923]
[1765812767014,0.561,3013.6,3012.7,6.6385634]
[1765812767258,1.0471,3013.6,3012.5,3.31948356]
[1765812767458,1.0471,3013.6,3012.4,3.31954118]
[1765812767752,5.744658,3013.4,3011.8,0.2017]
[1765812767921,0.561,3013.3,3012.5,3.31949182]
[1765812768252,0.4861,3013.5,3011.9,0.3522019]
[1765812768453,0.561,3013.2,3012.6,6.63878376]
[1765812768616,0.561,3013.2,3012.5,3.31946635]
[1765812768949,3.31884106,3013.1,3011.6,6.64098816]
[1765812769114,6.63768212,3013.1,3011.6,6.64098816]
[1765812769320,3.743898,3012.9,3011.6,3.32049408]
[1765812769569,3.743898,3012.9,3011.7,0.58047529]
[1765812769753,1.0471,3012.8,3011.7,0.58047529]
[1765812769957,1.0471,3012.8,3011.0,0.2017]
[1765812770142,1.089304,3012.7,3011.5,3.32057385]
[1765812770489,0.561,3012.6,3011.6,0.58047529]